bitfinex/quotes_BTCUSD_20251024
["timestamp","ask_amount","ask_price","bid_price","bid_amount"]
[1761347222851,4.08857215,111050.0,111040.0,0.00241866]
[1761347223664,4.12093458,111050.0,111040.0,0.00241866]
[1761347226379,4.08857215,111050.0,111040.0,0.00241866]
[1761347226683,4.11562902,111050.0,111040.0,0.00241866]
[1761347232262,4.07191539,111050.0,111040.0,0.00241866]
[1761347232429,4.11562816,111050.0,111040.0,0.00241866]
[1761347236222,4.11579799,111050.0,111040.0,0.00241866]
[1761347245436,3.8071684,111050.0,111040.0,0.00241866]
[1761347248594,3.80394948,111050.0,111040.0,0.00241866]
[1761347250279,3.61313882,111050.0,111040.0,0.00241866]
[1761347250511,4.2215152,111050.0,111040.0,0.00241866]
[1761347259304,4.10344553,111050.0,111040.0,0.00241866]
[1761347260518,4.41207512,111050.0,111040.0,0.00241866]
[1761347262759,4.47987627,111050.0,111040.0,0.00241866]
[1761347269473,4.50416114,111050.0,111040.0,0.00241866]
[1761347276926,4.43635999,111050.0,111040.0,0.00241866]
[1761347280781,4.127737,111050.0,111040.0,0.00241866]
[1761347285968,4.10158948,111050.0,111040.0,0.00241866]
[1761347287806,4.16893147,111050.0,111040.0,0.00241866]
[1761347292745,3.86029528,111050.0,111040.0,0.00241866]
[1761347292962,4.10158948,111050.0,111040.0,0.00241866]
[1761347302445,4.10157988,111050.0,111040.0,0.00241866]
[1761347307415,3.91026241,111050.0,111040.0,0.00241866]
[1761347307626,3.88598287,111050.0,111040.0,0.00241866]
[1761347310939,3.95306151,111050.0,111040.0,0.00241866]
[1761347314298,3.88598287,111050.0,111040.0,0.00241866]
[1761347315965,3.95206891,111050.0,111040.0,0.00241866]
[1761347316969,3.88598287,111050.0,111040.0,0.00241866]
[1761347317499,3.91026241,111050.0,111040.0,0.00241866]
[1761347334683,4.3168005,111050.0,111040.0,0.00241866]
[1761347334884,3.9183453,111050.0,111040.0,0.00241866]
[1761347335289,3.9426172,111050.0,111040.0,0.00241866]
[1761347335467,4.00956755,111050.0,111040.0,0.00241866]
[1761347336055,4.00956755,111050.0,111040.0,0.00141866]
[1761347336306,4.01056755,111050.0,111040.0,0.00141866]
[1761347337508,4.08942749,111050.0,111040.0,0.00141866]
[1761347337887,4.08043148,111050.0,111040.0,0.00141866]
[1761347338686,4.00157154,111050.0,111040.0,0.00141866]
[1761347340101,4.18181154,111050.0,111040.0,0.00141866]
[1761347340788,4.49061681,111050.0,111040.0,0.00141866]
[1761347341703,4.28244056,111050.0,111040.0,0.00141866]
[1761347342069,4.43017718,111050.0,111040.0,0.00141866]
[1761347342911,4.46176457,111050.0,111040.0,0.00141866]
[1761347344551,4.43017718,111050.0,111040.0,0.00141866]
[1761347351823,4.46253961,111050.0,111040.0,0.00141866]
[1761347353625,4.55235862,111050.0,111040.0,0.00141866]
[1761347354126,4.46253961,111050.0,111040.0,0.00141866]
[1761347356390,4.46251492,111050.0,111040.0,0.00141866]
[1761347360961,4.46252234,111050.0,111040.0,0.00141866]
[1761347364334,4.43825664,111050.0,111040.0,0.00141866]
[1761347364539,4.43826681,111050.0,111040.0,0.00141866]
[1761347365897,4.46254575,111050.0,111040.0,0.00141866]
[1761347369368,4.48058575,111050.0,111040.0,0.00141866]
[1761347369606,4.46254575,111050.0,111040.0,0.00141866]
[1761347372211,4.46254244,111050.0,111040.0,0.00141866]
[1761347374909,4.43826557,111050.0,111040.0,0.00141866]
[1761347376435,4.45195209,111050.0,111040.0,0.00141866]
[1761347377024,4.43826557,111050.0,111040.0,0.00141866]
[1761347377646,4.79559028,111050.0,111040.0,0.00141866]
[1761347377844,5.13559028,111050.0,111040.0,0.00141866]
[1761347379854,5.13481524,111050.0,111040.0,0.00141866]
[1761347380798,5.10322785,111050.0,111040.0,0.00141866]
[1761347381765,5.19304686,111050.0,111040.0,0.00141866]
[1761347382168,5.22539253,111050.0,111040.0,0.00141866]
[1761347382397,5.19304686,111050.0,111040.0,0.00141866]
[1761347383426,5.22538693,111050.0,111040.0,0.00141866]
[1761347389793,5.25697432,111050.0,111040.0,0.00141866]
[1761347390004,5.22538693,111050.0,111040.0,0.00141866]
[1761347391508,6.15079644,111050.0,111040.0,0.00141866]
[1761347391723,6.13846288,111050.0,111040.0,1e-08]
[1761347391931,6.17005027,111050.0,111040.0,1e-08]
[1761347392344,5.24088808,111050.0,111040.0,1e-08]
[1761347392756,5.23988808,111050.0,111040.0,1e-08]
[1761347393115,5.24088808,111050.0,111040.0,1e-08]
[1761347393321,5.24488808,111050.0,111040.0,1e-08]
[1761347395153,0.80619755,111040.0,111030.0,0.0004]
[1761347395381,5.34682306,111040.0,111030.0,0.0004]
[1761347395929,5.35122306,111040.0,111030.0,0.0004]
[1761347396319,5.04450233,111040.0,111030.0,0.00054769]
[1761347396526,5.04550233,111040.0,111030.0,0.00054769]
[1761347397453,5.07779,111040.0,111030.0,0.00054769]
[1761347400865,4.76924117,111040.0,111030.0,0.00054769]
[1761347402946,4.15162781,111040.0,111030.0,0.00054769]
[1761347403180,4.76924117,111040.0,111030.0,0.00054769]
[1761347403865,4.6041981,111040.0,111030.0,0.00054769]
[1761347404116,4.55574548,111040.0,111030.0,0.00054769]
[1761347406049,4.55574548,111040.0,111030.0,0.00088732]
[1761347407343,4.53153329,111040.0,111030.0,0.00088732]
[1761347409000,4.78143329,111040.0,111030.0,0.00088732]
[1761347413906,4.79759824,111040.0,111030.0,0.00088732]
[1761347418311,4.79756594,111040.0,111030.0,0.00088732]
[1761347421371,4.74911332,111040.0,111030.0,0.00088732]
[1761347421775,4.65929431,111040.0,111030.0,0.00088732]
[1761347430258,4.71697431,111040.0,111030.0,0.00088732]
[1761347434945,4.89725431,111040.0,111030.0,0.00088732]
[1761347435082,4.74523763,111040.0,111030.0,0.00088732]
[1761347445078,4.71287616,111040.0,111030.0,0.00088732]
[1761347446529,4.80269517,111040.0,111030.0,0.00088732]
[1761347451670,4.82073517,111040.0,111030.0,0.00088732]
[1761347451871,4.80269517,111040.0,111030.0,0.00088732]
[1761347458255,4.64186209,111040.0,111030.0,0.00088732]
[1761347458462,4.82197736,111040.0,111030.0,0.00088732]
[1761347460198,4.62019964,111040.0,111030.0,0.00088732]
[1761347460456,5.06459119,111040.0,111030.0,0.00088732]
[1761347460646,4.66875119,111040.0,111030.0,0.00088732]
[1761347461053,5.06459119,111040.0,111030.0,0.00088732]
[1761347461265,4.66875119,111040.0,111030.0,0.00088732]
[1761347461667,5.06459119,111040.0,111030.0,0.00088732]
[1761347462108,4.66875119,111040.0,111030.0,0.00088732]
[1761347462603,5.06459119,111040.0,111030.0,0.00088732]
[1761347462839,6.29996935,111040.0,111030.0,0.00088732]
[1761347463207,5.90412935,111040.0,111030.0,0.00088732]
[1761347463625,6.29996935,111040.0,111030.0,0.00088732]
[1761347465955,5.90412935,111040.0,111030.0,0.00088732]
[1761347466171,5.34110589,111040.0,111030.0,0.00088732]
[1761347466774,5.37346927,111040.0,111030.0,0.00088732]
[1761347466985,5.68230119,111040.0,111030.0,0.00088732]
[1761347468224,5.60138626,111040.0,111030.0,0.00088732]
[1761347470002,5.29255434,111040.0,111030.0,0.00088732]
[1761347473133,5.20273533,111040.0,111030.0,0.00088732]
[1761347476727,5.17114794,111040.0,111030.0,0.00088732]
[1761347480024,5.20273533,111040.0,111030.0,0.00088732]
[1761347480202,5.20276194,111040.0,111030.0,0.00088732]
[1761347487145,4.80692194,111040.0,111030.0,0.00088732]
[1761347487446,5.20276194,111040.0,111030.0,0.00088732]
[1761347489006,4.96480194,111040.0,111030.0,0.00088732]
[1761347489212,5.20276194,111040.0,111030.0,0.00088732]
[1761347491035,5.14508194,111040.0,111030.0,0.00088732]
[1761347491240,5.20276194,111040.0,111030.0,0.00088732]
[1761347491977,4.80692194,111040.0,111030.0,0.00088732]
[1761347492115,5.20276194,111040.0,111030.0,0.00088732]
[1761347493024,5.29258095,111040.0,111030.0,0.00088732]
[1761347493360,4.89674095,111040.0,111030.0,0.00088732]
[1761347493563,5.29258095,111040.0,111030.0,0.00088732]
[1761347493766,4.89674095,111040.0,111030.0,0.00088732]
[1761347494003,5.29258095,111040.0,111030.0,0.00088732]
[1761347494212,5.05462095,111040.0,111030.0,0.00088732]
[1761347494415,5.29258095,111040.0,111030.0,0.00088732]
[1761347498451,4.89674095,111040.0,111030.0,0.00088732]
[1761347498693,4.80692194,111040.0,111030.0,0.00088732]
[1761347498908,5.21531674,111040.0,111030.0,0.00088732]
[1761347502190,5.24690413,111040.0,111030.0,0.00088732]
[1761347507225,4.99700413,111040.0,111030.0,0.00088732]
[1761347515991,4.97036106,111040.0,111030.0,0.00088732]
[1761347522800,4.66140914,111040.0,111030.0,0.00088732]
[1761347526617,4.67060914,111040.0,111030.0,0.00088732]
[1761347528562,4.0530653,111040.0,111030.0,0.00088732]
[1761347528808,4.67060914,111040.0,111030.0,0.00088732]
[1761347533997,4.36183722,111040.0,111030.0,0.00088732]
[1761347534189,4.36260129,111040.0,111030.0,0.00088732]
[1761347534395,4.12323793,111040.0,111030.0,0.00088732]
[1761347534658,4.41469574,111040.0,111030.0,0.00088732]
[1761347535447,4.39357127,111040.0,111030.0,0.00088732]
[1761347535697,4.21329127,111040.0,111030.0,0.00088732]
[1761347540195,4.18093981,111040.0,111030.0,0.00088732]
[1761347545339,4.03978378,111040.0,111030.0,0.00088732]
[1761347545564,4.03978378,111040.0,111010.0,0.18917199]
[1761347545771,2.88310178,111020.0,111010.0,0.18044306]
[1761347545931,0.15784,111020.0,111010.0,0.18044306]
[1761347546348,0.15784,111020.0,111010.0,0.20750476]
[1761347546752,0.46661192,111020.0,111010.0,0.20750476]
[1761347547080,0.46661192,111020.0,111010.0,0.21651295]
[1761347547308,0.46661192,111020.0,111010.0,0.21751295]
[1761347551410,0.46661192,111020.0,111010.0,0.21819236]
[1761347551809,0.15784,111020.0,111010.0,0.21819236]
[1761347552979,0.15784,111020.0,111010.0,0.21719236]
[1761347553197,0.15784,111020.0,111010.0,0.21819236]
[1761347553433,0.15784,111020.0,111010.0,0.22219236]
[1761347555000,0.02665765,111030.0,111020.0,0.18014772]
[1761347555215,0.18449765,111030.0,111020.0,0.18014772]
[1761347556230,0.18449765,111030.0,111020.0,0.2092061]
[1761347558050,0.02665765,111030.0,111020.0,0.2092061]
[1761347560573,0.02665765,111030.0,111020.0,0.20954578]
[1761347565578,0.33542957,111030.0,111020.0,0.20954578]
[1761347567902,0.02665765,111030.0,111020.0,0.20954578]
[1761347580670,3.82433298,111030.0,111020.0,0.02939806]
[1761347581163,3.84373039,111030.0,111020.0,0.02939806]
[1761347581625,3.9335494,111030.0,111020.0,0.00233968]
[1761347581819,3.96513679,111030.0,111020.0,0.00233968]
[1761347582225,3.99219896,111030.0,111020.0,0.00233968]
[1761347582787,3.9923012,111030.0,111020.0,0.00033968]
[1761347582994,4.41620106,111030.0,111020.0,0.00033968]
[1761347583368,4.10737802,111030.0,111020.0,0.00033968]
[1761347583579,4.41620106,111030.0,111020.0,0.00033968]
[1761347583721,4.10737802,111030.0,111020.0,0.00033968]
[1761347584146,4.08312021,111030.0,111020.0,0.00033968]
[1761347586323,4.05153282,111030.0,111020.0,0.00033968]
[1761347587118,3.96171381,111030.0,111020.0,0.00033968]
[1761347593755,3.34406773,111030.0,111020.0,0.00033968]
[1761347593991,3.96171381,111030.0,111020.0,0.00033968]
[1761347594895,3.94980967,111030.0,111020.0,0.00033968]
[1761347604942,3.93790538,111030.0,111020.0,0.00033968]
[1761347605400,3.97408766,111030.0,111020.0,0.00033968]
[1761347606176,3.99834547,111030.0,111020.0,0.00033968]
[1761347609345,4.03069693,111030.0,111020.0,0.00033968]
[1761347610330,3.41305085,111030.0,111020.0,0.00033968]
[1761347610559,4.03069693,111030.0,111020.0,0.00033968]
[1761347619154,3.72187389,111030.0,111020.0,0.00033968]
[1761347619641,4.03069693,111030.0,111020.0,0.00033968]
[1761347620053,4.02262985,111030.0,111020.0,0.00033968]
[1761347620282,4.02162985,111030.0,111020.0,0.00033968]
[1761347620492,4.02262985,111030.0,111020.0,0.00033968]
[1761347620718,4.02862985,111030.0,111020.0,0.00033968]
[1761347620928,4.02162985,111030.0,111020.0,0.00033968]
[1761347621254,4.02862985,111030.0,111020.0,0.00033968]
[1761347622425,4.08630985,111030.0,111020.0,0.00033968]
[1761347628030,4.17612886,111030.0,111020.0,0.00033968]
[1761347628667,4.08630985,111030.0,111020.0,0.00033968]
[1761347631409,4.07441032,111030.0,111020.0,0.00033968]
[1761347642201,4.01673032,111030.0,111020.0,0.00033968]
[1761347642410,4.23229032,111030.0,111020.0,0.00033968]
[1761347643352,4.01673032,111030.0,111020.0,0.00033968]
[1761347643732,4.23229032,111030.0,111020.0,0.00033968]
[1761347644837,4.23223588,111030.0,111020.0,0.00033968]
[1761347649169,4.18369369,111030.0,111020.0,0.00033968]
[1761347654268,3.96813369,111030.0,111020.0,0.00033968]
[1761347654447,4.18369369,111030.0,111020.0,0.00033968]
[1761347654825,4.20173369,111030.0,111020.0,0.00033968]
[1761347655060,4.18369369,111030.0,111020.0,0.00033968]
[1761347655506,4.03485994,111030.0,111020.0,0.00033968]
[1761347655756,4.21499143,111030.0,111020.0,0.00033968]
[1761347656516,4.15731143,111030.0,111020.0,0.00033968]
[1761347656918,4.21499143,111030.0,111020.0,0.00033968]
[1761347657441,4.15731143,111030.0,111020.0,0.00033968]
[1761347657624,4.21499143,111030.0,111020.0,0.00033968]
[1761347659562,3.99943143,111030.0,111020.0,0.00033968]
[1761347659761,4.21499143,111030.0,111020.0,0.00033968]
[1761347660163,3.99943143,111030.0,111020.0,0.00033968]
[1761347660393,4.21499143,111030.0,111020.0,0.00033968]
[1761347660639,4.20899143,111030.0,111020.0,0.00033968]
[1761347660843,4.21199143,111030.0,111020.0,0.00033968]
[1761347661534,4.21099143,111030.0,111020.0,0.00033968]
[1761347661737,4.21199143,111030.0,111020.0,0.00033968]
[1761347663904,3.99643143,111030.0,111020.0,0.00033968]
[1761347664133,4.21199143,111030.0,111020.0,0.00033968]
[1761347665419,4.16346166,111030.0,111020.0,0.00033968]
[1761347676142,4.10578166,111030.0,111020.0,0.00033968]
[1761347676447,3.94790166,111030.0,111020.0,0.00033968]
[1761347676673,4.16346166,111030.0,111020.0,0.00033968]
[1761347676881,3.94790166,111030.0,111020.0,0.00033968]
[1761347677078,4.16346166,111030.0,111020.0,0.00033968]
[1761347679586,3.94790166,111030.0,111020.0,0.00033968]
[1761347680529,4.16346166,111030.0,111020.0,0.00033968]
[1761347681034,4.10578166,111030.0,111020.0,0.00033968]
[1761347681230,4.16346166,111030.0,111020.0,0.00033968]
[1761347682653,4.04515463,111030.0,111020.0,0.00033968]
[1761347683465,4.01279847,111030.0,111020.0,0.00033968]
[1761347684883,3.79723847,111030.0,111020.0,0.00033968]
[1761347685070,4.19307847,111030.0,111020.0,0.00033968]
[1761347686788,3.79723847,111030.0,111020.0,0.00033968]
[1761347686998,3.95511847,111030.0,111020.0,0.00033968]
[1761347687153,4.19307847,111030.0,111020.0,0.00033968]
[1761347687776,3.79723847,111030.0,111020.0,0.00033968]
[1761347688112,4.19307847,111030.0,111020.0,0.00033968]
[1761347688451,3.95511847,111030.0,111020.0,0.00033968]
[1761347688735,4.19307847,111030.0,111020.0,0.00033968]
[1761347688956,3.79723847,111030.0,111020.0,0.00033968]
[1761347689165,4.19307847,111030.0,111020.0,0.00033968]
[1761347689550,3.79723847,111030.0,111020.0,0.00033968]
[1761347689765,4.19307847,111030.0,111020.0,0.00033968]
[1761347689957,3.79723847,111030.0,111020.0,0.00033968]
[1761347690368,4.19307847,111030.0,111020.0,0.00033968]
[1761347691547,3.79723847,111030.0,111020.0,0.00033968]
[1761347691755,4.19307847,111030.0,111020.0,0.00033968]
[1761347692480,3.79723847,111030.0,111020.0,0.00033968]
[1761347692698,4.14454423,111030.0,111020.0,0.00033968]
[1761347697223,4.19956389,111030.0,111020.0,0.00033968]
[1761347697428,4.24264881,111030.0,111020.0,0.00033968]
[1761347699487,4.20940204,111030.0,111020.0,0.00033968]
[1761347699636,4.24264881,111030.0,111020.0,0.00033968]
[1761347699840,4.20940204,111030.0,111020.0,0.00033968]
[1761347701657,0.55633,111020.0,111010.0,0.00027926]
[1761347701868,0.18018018,111000.0,110990.0,0.0004]
[1761347702077,3.92949322,111000.0,110990.0,0.00044911]
[1761347702303,3.98080648,111000.0,110990.0,0.00146846]
[1761347702710,3.98992147,111000.0,110990.0,0.00146846]
[1761347702920,3.93224147,111000.0,110990.0,0.00146846]
[1761347703186,3.99092147,111000.0,110990.0,0.00146846]
[1761347704152,3.75131519,111000.0,110990.0,0.00146846]
[1761347704354,3.71897044,111000.0,110990.0,0.00146846]
[1761347704765,4.02796444,111000.0,110990.0,0.00146846]
[1761347707326,0.20260071,111000.0,110990.0,0.18166487]
[1761347707524,0.17835741,111000.0,110990.0,0.58037879]
[1761347707745,0.15896,111000.0,110990.0,0.27148388]
[1761347711658,0.46785491,111000.0,110990.0,0.27148388]
[1761347715065,0.48723132,111000.0,110990.0,0.27148388]
[1761347716276,0.6674115,111000.0,110990.0,0.27148388]
[1761347716782,0.48723132,111000.0,110990.0,0.27148388]
[1761347716998,0.17833641,111000.0,110990.0,0.27148388]
[1761347717209,0.02037641,111000.0,110990.0,0.27148388]
[1761347717420,0.15908,111000.0,110990.0,0.27148388]
[1761347719415,0.456073,111000.0,110990.0,0.27148388]
[1761347720355,0.475451,111000.0,110990.0,0.27148388]
[1761347725828,0.65563118,111000.0,110990.0,0.09128747]
[1761347726048,0.65563118,111000.0,110990.0,0.27148388]
[1761347731620,0.34673627,111000.0,110990.0,0.27148388]
[1761347731821,0.65563118,111000.0,110990.0,0.27148388]
[1761347732677,0.65563118,111000.0,110990.0,0.18166487]
[1761347732882,3.96452609,111000.0,110990.0,0.00146846]
[1761347733086,3.97686689,111000.0,110990.0,0.00146846]
[1761347734449,4.31686689,111000.0,110990.0,0.00146846]
[1761347734655,4.34921164,111000.0,110990.0,0.00146846]
[1761347736440,4.72539105,111000.0,110990.0,0.00146846]
[1761347736622,4.41649614,111000.0,110990.0,0.00146846]
[1761347737884,4.45086216,111000.0,110990.0,0.00146846]
[1761347740204,4.41851741,111000.0,110990.0,0.00146846]
[1761347740807,4.36886218,111000.0,110990.0,0.00146846]
[1761347741533,3.72682906,111000.0,110990.0,0.00146846]
[1761347741739,4.34461888,111000.0,110990.0,0.00146846]
[1761347744012,4.31025286,111000.0,110990.0,0.00146846]
[1761347744631,4.36793286,111000.0,110990.0,0.00146846]
[1761347746426,4.08488836,111000.0,110990.0,0.00146846]
[1761347746614,3.99175345,111000.0,110990.0,0.00146846]
[1761347748488,4.30064836,111000.0,110990.0,0.00146846]
[1761347750758,4.32489166,111000.0,110990.0,0.00146846]
[1761347757361,4.35723641,111000.0,110990.0,0.00146846]
[1761347762191,4.33299311,111000.0,110990.0,0.00146846]
[1761347766725,4.02406559,111000.0,110990.0,0.00146846]
[1761347767584,4.05113259,111000.0,110990.0,0.00146846]
[1761347775055,4.03923068,111000.0,110990.0,0.00146846]
[1761347777444,0.05661046,111000.0,110990.0,0.18166487]
[1761347777666,0.36248589,111000.0,110990.0,0.18166487]
[1761347778110,0.18230571,111000.0,110990.0,0.18166487]
[1761347778520,0.15804,111000.0,110990.0,0.18166487]
[1761347780765,0.17743967,111000.0,110990.0,0.18166487]
[1761347781598,0.01939967,111000.0,110990.0,0.18166487]
[1761347781805,0.05131564,111010.0,111000.0,0.18018018]
[1761347781806,0.17743967,111010.0,111000.0,0.18018018]
[1761347781975,0.17743892,111010.0,111000.0,0.18018018]
[1761347782175,0.17743892,111010.0,111000.0,0.18085968]
[1761347783184,0.15804,111010.0,111000.0,0.18185968]
[1761347784666,0.15482108,111010.0,111000.0,0.18185968]
[1761347785095,3.0,111020.0,111010.0,0.18015524]
[1761347785231,3.35755714,111020.0,111010.0,0.18015524]
[1761347786196,3.34665523,111020.0,111010.0,0.18015524]
[1761347786401,3.34765523,111020.0,111010.0,0.18015524]
[1761347786554,3.16750751,111020.0,111010.0,0.18015524]
[1761347787126,3.16650751,111020.0,111010.0,0.18015524]
[1761347787335,3.16650751,111020.0,111010.0,0.18115524]
[1761347787762,3.16650751,111020.0,111010.0,0.18015524]
[1761347788511,3.16550751,111020.0,111010.0,0.18015524]
[1761347789059,3.16550751,111020.0,111010.0,0.18315524]
[1761347789805,3.1536041,111020.0,111010.0,0.18315524]
[1761347789950,0.17740942,111020.0,111010.0,0.18315524]
[1761347790573,0.48627172,111020.0,111010.0,0.18349496]
[1761347792056,0.17740942,111020.0,111010.0,0.18349496]
[1761347793548,0.01936942,111020.0,111010.0,0.18349496]
[1761347793747,0.15804,111020.0,111010.0,0.18349496]
[1761347793920,0.1773922,111020.0,111010.0,0.18349496]
[1761347794494,0.17739141,111020.0,111010.0,0.18349496]
[1761347795406,0.15804,111020.0,111010.0,0.18349496]
[1761347796032,0.14613809,111020.0,111010.0,0.18349496]
[1761347805287,0.54667448,111030.0,111010.0,0.18349496]
[1761347805494,0.14613742,111020.0,111010.0,0.18349496]
[1761347805705,0.45499972,111020.0,111010.0,0.18349496]
[1761347805908,0.14613742,111020.0,111010.0,0.18349496]
[1761347807154,0.16551404,111020.0,111010.0,0.18349496]
[1761347811491,0.46247384,111020.0,111010.0,0.18349496]
[1761347811898,0.15361154,111020.0,111010.0,0.18349496]
[1761347813063,0.46247384,111020.0,111010.0,0.18349496]
[1761347813446,0.32823892,111020.0,111010.0,0.18349496]
[1761347814965,0.01937662,111020.0,111010.0,0.18349496]
[1761347817758,0.1954757,111020.0,111010.0,0.18349496]
[1761347817963,0.504338,111020.0,111010.0,0.18349496]
[1761347819210,0.32419028,111020.0,111010.0,0.18349496]
[1761347821245,0.504338,111020.0,111010.0,0.18349496]
[1761347822929,0.31842926,111020.0,111010.0,0.18349496]
[1761347826858,0.34548857,111020.0,111010.0,0.18349496]
[1761347827086,0.155543,111020.0,111010.0,0.18349496]
[1761347828697,0.46425271,111020.0,111010.0,0.18349496]
[1761347831548,0.155543,111020.0,111010.0,0.18349496]
[1761347831755,0.33576902,111020.0,111010.0,0.18349496]
[1761347833953,0.02705931,111020.0,111010.0,0.18349496]
[1761347836070,0.20720703,111020.0,111010.0,0.18349496]
[1761347837034,0.02705931,111020.0,111010.0,0.18349496]
[1761347849506,0.20720703,111020.0,111010.0,0.18350366]
[1761347849769,0.51591674,111020.0,111010.0,0.18350366]
[1761347855206,0.02705931,111020.0,111010.0,0.18350366]
[1761347861982,0.02705931,111020.0,111010.0,0.49221337]
[1761347867475,0.18216959,111030.0,111020.0,0.18014772]
[1761347867647,0.17732571,111030.0,111020.0,0.26996673]
[1761347867854,0.17732571,111030.0,111020.0,0.57867644]
[1761347868605,0.17732571,111030.0,111020.0,0.57967644]
[1761347869659,0.01940571,111030.0,111020.0,0.57967644]
[1761347869910,3.15905779,111040.0,111030.0,0.18013149]
[1761347870078,3.17845055,111040.0,111030.0,0.18013149]
[1761347871167,3.17845055,111040.0,111030.0,0.1801806]
[1761347871364,3.17845055,111040.0,111030.0,0.1811806]
[1761347877301,3.48716026,111040.0,111030.0,0.1811806]
[1761347887039,3.66727553,111040.0,111030.0,0.1811806]
[1761347887237,3.35856582,111040.0,111030.0,0.00104911]
[1761347887443,3.66727553,111040.0,111030.0,0.00104911]
[1761347888353,3.66727553,111040.0,111030.0,0.1811806]
[1761347888813,3.66718882,111040.0,111030.0,0.1811806]
[1761347889374,3.66718882,111040.0,111030.0,0.00104911]
[1761347890180,3.66717163,111040.0,111030.0,0.00104911]
[1761347890382,3.66717163,111040.0,111030.0,0.1811806]
[1761347891345,3.66717163,111040.0,111030.0,0.00104911]
[1761347895438,3.6913911,111040.0,111030.0,0.00104911]
[1761347895908,3.66717163,111040.0,111030.0,0.00104911]
[1761347896364,3.6913911,111040.0,111030.0,0.00104911]
[1761347902145,3.3827681,111040.0,111030.0,0.00104911]
[1761347902361,3.6913911,111040.0,111030.0,0.00104911]
[1761347903631,3.72373585,111040.0,111030.0,0.00104911]
[1761347903838,3.75079475,111040.0,111030.0,0.00104911]
[1761347904270,3.75079475,111040.0,111030.0,4.911e-05]
[1761347904475,3.75179475,111040.0,111030.0,4.911e-05]
[1761347904674,3.75279475,111040.0,111030.0,4.911e-05]
[1761347905949,3.411827,111040.0,111030.0,4.911e-05]
[1761347906162,3.72041,111040.0,111030.0,4.911e-05]
[1761347906372,3.77809,111040.0,111030.0,4.911e-05]
[1761347908074,3.411787,111040.0,111030.0,4.911e-05]
[1761347908374,3.469467,111040.0,111030.0,4.911e-05]
[1761347909751,3.77809,111040.0,111030.0,4.911e-05]
[1761347921175,3.54821131,111040.0,111030.0,4.911e-05]
[1761347921344,3.75281274,111040.0,111030.0,4.911e-05]
[1761347931131,3.77703221,111040.0,111030.0,4.911e-05]
[1761347946540,3.74997331,111040.0,111030.0,4.911e-05]
[1761347948272,3.77703094,111040.0,111030.0,4.911e-05]
[1761347950958,4.08572822,111040.0,111030.0,4.911e-05]
[1761347954519,4.11807297,111040.0,111030.0,4.911e-05]
[1761347962461,4.11813414,111040.0,111030.0,4.911e-05]
[1761347963910,3.50081386,111040.0,111030.0,4.911e-05]
[1761347964110,4.11813414,111040.0,111030.0,4.911e-05]
[1761347972297,4.08578939,111040.0,111030.0,4.911e-05]
[1761347973888,3.87014939,111040.0,111030.0,4.911e-05]
[1761347974101,4.08574939,111040.0,111030.0,4.911e-05]
[1761347976163,3.67567232,111040.0,111030.0,4.911e-05]
[1761347976322,4.04713414,111040.0,111030.0,4.911e-05]
[1761347977622,3.738474,111040.0,111030.0,4.911e-05]
[1761347978634,3.522874,111040.0,111030.0,4.911e-05]
[1761347978842,3.738474,111040.0,111030.0,4.911e-05]
[1761347979057,3.522874,111040.0,111030.0,4.911e-05]
[1761347979259,3.738474,111040.0,111030.0,4.911e-05]
[1761347981394,3.522874,111040.0,111030.0,4.911e-05]
[1761347981605,3.738474,111040.0,111030.0,4.911e-05]
[1761347982127,3.522874,111040.0,111030.0,4.911e-05]
[1761347982338,3.680794,111040.0,111030.0,4.911e-05]
[1761347982529,3.738474,111040.0,111030.0,4.911e-05]
[1761347983241,3.522874,111040.0,111030.0,4.911e-05]
[1761347983393,3.738474,111040.0,111030.0,4.911e-05]
[1761347986365,3.76272745,111040.0,111030.0,4.911e-05]
[1761347986772,3.70504745,111040.0,111030.0,4.911e-05]
[1761347986913,3.76272745,111040.0,111030.0,4.911e-05]
[1761347991601,3.70504745,111040.0,111030.0,4.911e-05]
[1761347991847,3.76272745,111040.0,111030.0,4.911e-05]
[1761347993071,3.54712745,111040.0,111030.0,4.911e-05]
[1761347993566,3.76272745,111040.0,111030.0,4.911e-05]
[1761347994681,3.70504745,111040.0,111030.0,4.911e-05]
[1761347994883,3.76272745,111040.0,111030.0,4.911e-05]
[1761347997547,3.54712745,111040.0,111030.0,4.911e-05]
[1761347997801,3.76272745,111040.0,111030.0,4.911e-05]
[1761347997951,3.70504745,111040.0,111030.0,4.911e-05]
[1761347998393,3.76272745,111040.0,111030.0,4.911e-05]
[1761347998593,3.54712745,111040.0,111030.0,4.911e-05]
[1761347998798,3.76272745,111040.0,111030.0,4.911e-05]
[1761347999085,3.54712745,111040.0,111030.0,4.911e-05]
[1761347999283,3.76272745,111040.0,111030.0,4.911e-05]
[1761348003041,3.45406731,111040.0,111030.0,4.911e-05]
[1761348003259,3.54712745,111040.0,111030.0,0.1801806]
[1761348003493,3.76272745,111040.0,111030.0,0.1801806]
[1761348004901,3.53882957,111040.0,111030.0,0.1801806]
[1761348005100,3.7508358,111040.0,111030.0,4.911e-05]
[1761348008251,4.05949594,111040.0,111030.0,4.911e-05]
[1761348008478,4.00181594,111040.0,111030.0,4.911e-05]
[1761348008678,4.05949594,111040.0,111030.0,4.911e-05]
[1761348009018,3.7508358,111040.0,111030.0,4.911e-05]
[1761348009515,3.6931558,111040.0,111030.0,4.911e-05]
[1761348009678,3.7508358,111040.0,111030.0,4.911e-05]
[1761348009877,3.6931558,111040.0,111030.0,4.911e-05]
[1761348010215,3.7508358,111040.0,111030.0,4.911e-05]
[1761348010513,3.46021566,111040.0,111030.0,4.911e-05]
[1761348010718,3.75083548,111040.0,111030.0,4.911e-05]
[1761348014579,3.53523548,111040.0,111030.0,4.911e-05]
[1761348014789,3.69315548,111040.0,111030.0,4.911e-05]
[1761348014971,3.77508893,111040.0,111030.0,4.911e-05]
[1761348015938,3.55948893,111040.0,111030.0,4.911e-05]
[1761348016311,3.77508893,111040.0,111030.0,4.911e-05]
[1761348019434,3.55948893,111040.0,111030.0,4.911e-05]
[1761348019635,3.77508893,111040.0,111030.0,4.911e-05]
[1761348030095,3.7750831,111040.0,111030.0,4.911e-05]
[1761348031143,3.46642328,111040.0,111030.0,4.911e-05]
[1761348031340,3.7750831,111040.0,111030.0,4.911e-05]
[1761348035594,3.7750831,111040.0,111030.0,0.1801806]
[1761348038022,3.7750995,111040.0,111030.0,0.1801806]
[1761348038391,3.46643968,111040.0,111030.0,0.1801806]
[1761348039047,3.07072441,111040.0,111030.0,0.1801806]
[1761348039256,0.22864441,111040.0,111030.0,0.1801806]
[1761348040065,0.20438509,111040.0,111030.0,0.1801806]
[1761348040870,0.20438509,111040.0,111030.0,0.1821806]
[1761348044545,0.20434509,111040.0,111030.0,0.1821806]
[1761348045383,0.04646509,111040.0,111030.0,0.58065943]
[1761348045591,0.15804983,111050.0,111040.0,0.18011527]
[1761348045797,0.20450646,111050.0,111040.0,0.18011527]
[1761348047983,0.15804983,111050.0,111040.0,0.18311527]
[1761348049517,0.00016983,111050.0,111040.0,0.18311527]
[1761348051343,0.00050938,111050.0,111040.0,0.18311527]
[1761348066775,0.0275611,111050.0,111040.0,0.18311527]
[1761348068137,0.18008336,111060.0,111050.0,0.18009905]
[1761348068360,0.50812172,111060.0,111050.0,0.18009905]